fUSD/lending_fUSD_20241227
["ID","MTS","AMOUNT","RATE_DAILY","PERIOD"]
[346829043,1735311045720,-500.0,0.00010869,2]
[346829045,1735311045731,-2000.0,0.0001087,2]
[346829047,1735311045744,-200.0,0.0001087,2]
[346829049,1735311045753,-1233.3,0.0001087,2]
[346829051,1735311045762,-151.0,0.0001087,2]
[346829052,1735311045772,-500.0,0.0001087,2]
[346829053,1735311045782,-500.0,0.0001087,2]
[346829054,1735311045791,-500.0,0.0001087,2]
[346829055,1735311045801,-1481.29,0.0001087,2]
[346829056,1735311045810,-500.0,0.0001087,2]
[346829057,1735311045820,-500.0,0.0001087,2]
[346829058,1735311045830,-657.18,0.0001087,2]
[346829059,1735311045847,-500.0,0.0001087,2]
[346829060,1735311045857,-500.0,0.0001087,2]
[346829061,1735311045867,-708.51,0.0001087,2]
[346829062,1735311045877,-500.0,0.0001087,2]
[346829063,1735311045887,-500.0,0.0001087,2]
[346829064,1735311045896,-1013.03,0.0001087,2]
[346829065,1735311045906,-500.0,0.0001087,2]
[346829066,1735311045915,-667.74,0.0001087,2]
[346829067,1735311045925,-500.0,0.0001087,2]
[346829068,1735311045935,-500.0,0.0001087,2]
[346829069,1735311045944,-613.98,0.0001087,2]
[346829070,1735311045953,-500.0,0.0001087,2]
[346829071,1735311045963,-595.98,0.0001087,2]
[346829072,1735311045973,-500.0,0.0001087,2]
[346829073,1735311045983,-1764.55,0.0001087,2]
[346829074,1735311045995,-500.0,0.0001087,2]
[346829076,1735311046005,-575.91,0.0001087,2]
[346829077,1735311046014,-500.0,0.0001087,2]
[346829078,1735311046023,-500.0,0.0001087,2]
[346829079,1735311046033,-501.06727096,0.0001087,2]
[346829080,1735311046043,-500.0,0.0001087,2]
[346829081,1735311046053,-500.0,0.0001087,2]
[346829083,1735311046063,-500.0,0.0001087,2]
[346829085,1735311046072,-500.0,0.0001087,2]
[346829087,1735311046081,-500.0,0.0001087,2]
[346829089,1735311046091,-589.04,0.0001087,2]
[346829091,1735311046100,-500.0,0.0001087,2]
[346829093,1735311046110,-682.45,0.0001087,2]
[346829095,1735311046120,-500.0,0.0001087,2]
[346829097,1735311046129,-1186.73,0.0001087,2]
[346829099,1735311046139,-500.0,0.0001087,2]
[346829101,1735311046148,-1074.34,0.0001087,2]
[346829103,1735311046158,-668.43179128,0.0001087,2]
[346829105,1735311046171,-263.86867618,0.0001087,2]
[346829107,1735311046182,-204.27953254,0.0001087,2]
[346829109,1735311046192,-358.49396346,0.0001087,2]
[346829112,1735311046212,-500.0,0.00010768,2]
[346829113,1735311046222,-141.50603654,0.0001087,2]
[346829114,1735311046231,-500.0,0.0001087,2]
[346829115,1735311046248,-500.0,0.0001087,2]
[346829116,1735311046257,-282.3936363,0.0001087,2]
[346829117,1735311046268,-217.6063637,0.0001087,2]
[346829118,1735311046277,-500.0,0.0001087,2]
[346829119,1735311046286,-500.0,0.0001087,2]
[346829120,1735311046295,-500.0,0.0001087,2]
[346829121,1735311046304,-500.0,0.0001087,2]
[346829122,1735311046313,-500.0,0.0001087,2]
[346829123,1735311046322,-500.0,0.0001087,2]
[346829124,1735311046332,-500.0,0.0001087,2]
[346829126,1735311046342,-500.0,0.0001087,2]
[346829127,1735311046351,-500.0,0.0001087,2]
[346829129,1735311046361,-500.0,0.0001087,2]
[346829130,1735311046371,-500.0,0.0001087,2]
[346829131,1735311046381,-901.55,0.0001087,2]
[346829132,1735311046390,-1004.42,0.0001087,2]
[346829133,1735311046400,-500.0,0.0001087,2]
[346829134,1735311046409,-500.0,0.0001087,2]
[346829135,1735311046419,-500.0,0.0001087,2]
[346829136,1735311046673,-500.0,0.0001087,2]
[346829137,1735311046684,-500.0,0.0001087,2]
[346829138,1735311046694,-500.0,0.0001087,2]
[346829140,1735311046703,-500.0,0.0001087,2]
[346829142,1735311046713,-500.0,0.0001087,2]
[346829144,1735311046722,-500.0,0.0001087,2]
[346829146,1735311046732,-500.0,0.0001087,2]
[346829148,1735311046744,-682.21,0.0001087,2]
[346829150,1735311046754,-500.0,0.0001087,2]
[346829152,1735311046763,-500.0,0.0001087,2]
[346829154,1735311046773,-500.0,0.0001087,2]
[346829156,1735311046783,-2000.0,0.0001087,2]
[346829158,1735311046793,-751.97,0.0001087,2]
[346829160,1735311046803,-500.0,0.0001087,2]
[346829162,1735311046812,-500.0,0.0001087,2]
[346829164,1735311046821,-200.0,0.0001087,2]
[346829166,1735311046831,-500.0,0.0001087,2]
[346829168,1735311046845,-500.0,0.0001087,2]
[346829170,1735311046854,-500.0,0.0001087,2]
[346829172,1735311046863,-220.32,0.0001087,2]
[346829174,1735311046873,-500.0,0.0001087,2]
[346829176,1735311046882,-500.0,0.0001087,2]
[346829178,1735311046893,-500.0,0.0001087,2]
[346829180,1735311046902,-1137.19,0.0001087,2]
[346829182,1735311046911,-500.0,0.0001087,2]
[346829184,1735311046920,-500.0,0.0001087,2]
[346829186,1735311046930,-872.75,0.0001087,2]
[346829188,1735311046940,-500.0,0.0001087,2]
[346829190,1735311046949,-431.43500747,0.0001087,2]
[346829193,1735311046961,-68.56499253,0.0001087,2]
[346829195,1735311046971,-220.42043475,0.0001087,2]
[346829197,1735311046983,-279.57956525,0.0001087,2]
[346829199,1735311046996,-500.0,0.0001087,2]
[346829201,1735311047005,-500.0,0.0001087,2]
[346829203,1735311047015,-500.0,0.0001087,2]
[346829205,1735311047024,-500.0,0.0001087,2]
[346829207,1735311047033,-500.0,0.0001087,2]
[346829209,1735311047043,-150.0,0.0001087,2]
[346829211,1735311047052,-5000.0,0.0001087,2]
[346829213,1735311047061,-978.96,0.0001087,2]
[346829215,1735311047071,-500.0,0.0001087,2]
[346829217,1735311047080,-875.44,0.0001087,2]
[346829219,1735311047089,-789.51,0.0001087,2]
[346829221,1735311047099,-500.0,0.0001087,2]
[346829223,1735311047109,-500.0,0.0001087,2]
[346829225,1735311047118,-500.0,0.0001087,2]
[346829227,1735311047127,-1290.13,0.0001087,2]
[346829229,1735311047136,-500.0,0.0001087,2]
[346829231,1735311047146,-500.0,0.0001087,2]
[346829233,1735311047155,-500.0,0.0001087,2]
[346829235,1735311047165,-500.0,0.0001087,2]
[346829237,1735311047174,-624.33851794,0.0001087,2]
[346829239,1735311047183,-500.0,0.0001087,2]
[346829241,1735311047193,-500.0,0.0001087,2]
[346829243,1735311047202,-687.73,0.0001087,2]
[346829245,1735311047211,-500.0,0.0001087,2]
[346829247,1735311047221,-564.63,0.0001087,2]
[346829249,1735311047231,-1264.4,0.0001087,2]
[346829251,1735311047242,-500.0,0.0001087,2]
[346829253,1735311047251,-500.0,0.0001087,2]
[346829255,1735311047261,-1413.58,0.0001087,2]
[346829257,1735311047271,-2000.0,0.0001087,2]
[346829259,1735311047280,-200.0,0.0001087,2]
[346829261,1735311047289,-500.0,0.0001087,2]
[346829263,1735311047299,-500.0,0.0001087,2]
[346829265,1735311047308,-500.0,0.0001087,2]
[346829267,1735311047317,-1521.59,0.0001087,2]
[346829269,1735311047327,-500.0,0.0001087,2]
[346829271,1735311047336,-500.0,0.0001087,2]
[346829273,1735311047345,-500.0,0.0001087,2]
[346829275,1735311047355,-500.0,0.00010871,2]
[346829276,1735311047364,-500.0,0.00010871,2]
[346829278,1735311047374,-500.0,0.00010871,2]
[346829280,1735311047384,-500.0,0.00010871,2]
[346829282,1735311047393,-500.0,0.00010871,2]
[346829284,1735311047403,-500.0,0.00010872,2]
[346829286,1735311047412,-500.0,0.00010872,2]
[346829288,1735311047421,-8199.01,0.00010872,2]
[346829290,1735311047431,-1140.58,0.00010872,2]
[346829292,1735311047440,-2467.29,0.00010872,2]
[346829294,1735311047450,-2491.01,0.00010872,2]
[346829296,1735311047459,-1864.42,0.00010872,2]
[346829298,1735311047468,-6380.95,0.00010872,2]
[346829300,1735311047477,-500.0,0.00010872,2]
[346829302,1735311047488,-5015.23,0.00010872,2]
[346829304,1735311047497,-500.0,0.00010872,2]
[346829306,1735311047506,-500.0,0.00010873,2]
[346829308,1735311047517,-180.60170636,0.00010873,2]
[346829309,1735311047526,-1000.0,0.00010874,2]
[346829310,1735311047535,-1000.0,0.00010874,2]
[346829311,1735311047545,-1000.0,0.00010874,2]
[346829312,1735311047554,-1000.0,0.00010874,2]
[346829313,1735311047564,-1000.0,0.00010874,2]
[346829314,1735311047574,-1000.0,0.00010874,2]
[346829315,1735311047584,-1000.0,0.00010874,2]
[346829316,1735311047593,-1000.0,0.00010874,2]
[346829317,1735311047603,-1000.0,0.00010874,2]
[346829318,1735311047613,-1000.0,0.00010874,2]
[346829319,1735311047627,-1000.0,0.00010874,2]
[346829320,1735311047636,-1000.0,0.00010874,2]
[346829321,1735311047645,-1000.0,0.00010874,2]
[346829322,1735311047655,-1000.0,0.00010874,2]
[346829323,1735311047664,-1000.0,0.00010874,2]
[346829324,1735311047674,-1000.0,0.00010874,2]
[346829325,1735311047683,-1000.0,0.00010874,2]
[346829326,1735311047693,-1000.0,0.00010874,2]
[346829327,1735311047702,-1000.0,0.00010874,2]
[346829328,1735311047712,-1000.0,0.00010874,2]
[346829329,1735311047722,-500.0,0.00010874,2]
[346829330,1735311047731,-1000.0,0.00010874,2]
[346829331,1735311047742,-1000.0,0.00010874,2]
[346829332,1735311047752,-1000.0,0.00010874,2]
[346829333,1735311047762,-1000.0,0.00010874,2]
[346829334,1735311047771,-1000.0,0.00010874,2]
[346829335,1735311047780,-1000.0,0.00010874,2]
[346829336,1735311047790,-1000.0,0.00010874,2]
[346829337,1735311047800,-1000.0,0.00010874,2]
[346829338,1735311047810,-1000.0,0.00010874,2]
[346829339,1735311047819,-1000.0,0.00010874,2]
[346829340,1735311047829,-1000.0,0.00010874,2]
[346829341,1735311047843,-1000.0,0.00010874,2]
[346829342,1735311047852,-1000.0,0.00010874,2]
[346829343,1735311047861,-235.92112892,0.00010874,2]
[346829344,1735311047871,-167.85591898,0.000109,2]
[346829345,1735311047880,-815.7,0.00010959,2]
[346829346,1735311047890,-150.0,0.00010959,2]
[346829347,1735311047899,-5626.91,0.00010959,2]
[346829348,1735311047910,-500.0,0.00010973,2]
[346829349,1735311047921,-200.0,0.00010979,2]
[346829350,1735311047931,-2000.0,0.00010979,2]
[346829351,1735311047941,-200.0,0.00010979,2]
[346829352,1735311047950,-2000.0,0.00010979,2]
[346829353,1735311047960,-200.0,0.00010979,2]
[346829354,1735311047969,-400.0,0.00010986,2]
[346829355,1735311047980,-167.85591894,0.00010988,2]
[346829356,1735311047992,-500.0,0.0001104,2]
[346829357,1735311048002,-788.65,0.0001104,2]
[346829358,1735311048013,-500.0,0.0001104,2]
[346829359,1735311048022,-500.0,0.0001104,2]
[346829360,1735311048032,-500.0,0.0001104,2]
[346829361,1735311048042,-500.0,0.0001104,2]
[346829362,1735311048052,-662.2,0.0001104,2]
[346829363,1735311048062,-500.0,0.0001104,2]
[346829364,1735311048071,-500.0,0.0001104,2]
[346829365,1735311048081,-500.0,0.0001104,2]
[346829366,1735311048090,-500.0,0.0001104,2]
[346829367,1735311048099,-500.0,0.0001104,2]
[346829368,1735311048109,-500.0,0.0001104,2]
[346829369,1735311048118,-500.0,0.0001104,2]
[346829370,1735311048128,-648.59,0.0001104,2]
[346829371,1735311048138,-500.0,0.0001104,2]
[346829372,1735311048148,-500.0,0.0001104,2]
[346829373,1735311048158,-500.0,0.0001104,2]
[346829374,1735311048169,-500.0,0.0001104,2]
[346829375,1735311048179,-707.75,0.0001104,2]
[346829376,1735311048189,-500.0,0.0001104,2]
[346829377,1735311048200,-501.11205636,0.0001104,2]
[346829378,1735311048211,-500.0,0.0001104,2]
[346829379,1735311048221,-500.0,0.0001104,2]
[346829380,1735311048231,-500.0,0.0001104,2]
[346829381,1735311048245,-503.1740063,0.0001104,2]
[346829382,1735311048254,-500.0,0.0001104,2]
[346829383,1735311048263,-500.0,0.0001104,2]
[346829384,1735311048272,-807.92,0.0001104,2]
[346829385,1735311048282,-500.0,0.0001104,2]
[346829386,1735311048291,-500.0,0.0001104,2]
[346829387,1735311048301,-500.0,0.0001104,2]
[346829388,1735311048311,-500.0,0.0001104,2]
[346829389,1735311048321,-685.05,0.0001104,2]
[346829390,1735311048331,-500.0,0.0001104,2]
[346829391,1735311048340,-500.0,0.0001104,2]
[346829392,1735311048350,-500.0,0.0001104,2]
[346829393,1735311048361,-500.0,0.0001104,2]
[346829394,1735311048371,-631.48458613,0.0001104,2]
[346829395,1735311048381,-893.23,0.0001104,2]
[346829396,1735311048392,-500.0,0.0001104,2]
[346829397,1735311048403,-500.0,0.0001104,2]
[346829398,1735311048413,-614.18,0.0001104,2]
[346829399,1735311048423,-500.0,0.0001104,2]
[346829400,1735311048433,-500.0,0.0001104,2]
[346829401,1735311048443,-500.0,0.0001104,2]
[346829402,1735311048453,-603.52,0.0001104,2]
[346829403,1735311048463,-361.41,0.0001104,2]
[346829404,1735311048473,-500.0,0.0001104,2]
[346829405,1735311048483,-500.0,0.0001104,2]
[346829406,1735311048498,-844.86,0.0001104,2]
[346829407,1735311048508,-500.0,0.0001104,2]
[346829408,1735311048519,-500.0,0.0001104,2]
[346829409,1735311048529,-500.0,0.0001104,2]
[346829410,1735311048539,-500.0,0.0001104,2]
[346829411,1735311048549,-500.0,0.0001104,2]
[346829412,1735311048559,-500.0,0.0001104,2]
[346829413,1735311048570,-1036.29,0.0001104,2]
[346829414,1735311048580,-500.0,0.0001104,2]
[346829415,1735311048590,-500.0,0.0001104,2]
[346829416,1735311048599,-643.32468164,0.0001104,2]
[346829417,1735311048609,-500.0,0.0001104,2]
[346829418,1735311048619,-500.0,0.0001104,2]
[346829419,1735311048628,-530.43,0.0001104,2]
[346829420,1735311048638,-500.0,0.0001104,2]
[346829421,1735311048647,-500.0,0.0001104,2]
[346829422,1735311048657,-500.0,0.0001104,2]
[346829423,1735311048667,-500.0,0.0001104,2]
[346829424,1735311048677,-500.0,0.0001104,2]
[346829425,1735311048687,-500.0,0.0001104,2]
[346829426,1735311048696,-969.09,0.0001104,2]
[346829427,1735311048706,-500.0,0.0001104,2]
[346829428,1735311048716,-500.0,0.0001104,2]
[346829429,1735311048725,-500.0,0.0001104,2]
[346829430,1735311048735,-500.0,0.0001104,2]
[346829431,1735311048749,-509.16277625,0.0001104,2]
[346829432,1735311048759,-500.0,0.0001104,2]
[346829433,1735311048768,-577.70073631,0.0001104,2]
[346829434,1735311048778,-500.0,0.0001104,2]
[346829435,1735311048788,-500.0,0.0001104,2]
[346829436,1735311048798,-500.0,0.0001104,2]
[346829437,1735311048808,-500.0,0.0001104,2]
[346829438,1735311048817,-500.0,0.0001104,2]
[346829439,1735311048827,-500.0,0.0001104,2]
[346829440,1735311048839,-500.0,0.0001104,2]
[346829441,1735311048851,-500.0,0.0001104,2]
[346829442,1735311048861,-500.0,0.0001104,2]
[346829443,1735311048872,-500.0,0.0001104,2]
[346829444,1735311048882,-500.0,0.0001104,2]
[346829445,1735311048893,-823.44,0.0001104,2]
[346829446,1735311048903,-500.0,0.0001104,2]
[346829447,1735311048915,-603.38,0.0001104,2]
[346829448,1735311048925,-500.0,0.0001104,2]
[346829449,1735311048935,-3534.0,0.0001104,2]
[346829450,1735311048945,-500.0,0.0001104,2]
[346829451,1735311048955,-695.8,0.0001104,2]
[346829452,1735311048965,-500.0,0.0001104,2]
[346829453,1735311048975,-500.0,0.0001104,2]
[346829454,1735311048984,-928.94,0.0001104,2]
[346829455,1735311048999,-906.25,0.0001104,2]
[346829456,1735311049009,-13554.51,0.0001104,2]
[346829457,1735311049018,-500.0,0.0001104,2]
[346829458,1735311049028,-500.0,0.0001104,2]
[346829459,1735311049038,-500.0,0.0001104,2]
[346829460,1735311049048,-1038.57,0.0001104,2]
[346829461,1735311049059,-500.0,0.0001104,2]
[346829462,1735311049070,-3033.91,0.0001104,2]
[346829463,1735311049080,-500.0,0.0001104,2]
[346829464,1735311049091,-500.0,0.0001104,2]
[346829465,1735311049101,-606.77692346,0.0001104,2]
[346829466,1735311049111,-500.0,0.0001104,2]
[346829467,1735311049121,-500.0,0.0001104,2]
[346829468,1735311049131,-500.0,0.0001104,2]
[346829469,1735311049140,-500.0,0.0001104,2]
[346829470,1735311049150,-500.0,0.0001104,2]
[346829471,1735311049160,-3102.74,0.0001104,2]
[346829472,1735311049170,-630.37996138,0.0001104,2]
[346829473,1735311049179,-500.0,0.0001104,2]
[346829474,1735311049189,-500.0,0.0001104,2]
[346829475,1735311049199,-500.0,0.0001104,2]
[346829476,1735311049208,-5179.89,0.0001104,2]
[346829477,1735311049218,-703.07,0.0001104,2]
[346829478,1735311049228,-500.0,0.0001104,2]
[346829479,1735311049240,-500.0,0.0001104,2]
[346829480,1735311049250,-570.98,0.0001104,2]
[346829481,1735311049259,-500.0,0.0001104,2]
[346829482,1735311049269,-530.69,0.0001104,2]
[346829483,1735311049282,-500.0,0.0001104,2]
[346829484,1735311049292,-500.0,0.0001104,2]
[346829485,1735311049301,-655.16,0.0001104,2]
[346829486,1735311049312,-500.0,0.0001104,2]
[346829487,1735311049322,-367.52554089,0.0001104,2]
[346829488,1735311049332,-653.24,0.0001104,2]
[346829489,1735311049342,-500.0,0.0001104,2]
[346829490,1735311049351,-604.46,0.0001104,2]
[346829491,1735311049361,-1828.5,0.0001104,2]
[346829492,1735311049371,-500.0,0.0001104,2]
[346829493,1735311049381,-500.0,0.0001104,2]
[346829494,1735311049391,-500.0,0.0001104,2]
[346829495,1735311049401,-2001.93,0.00011041,2]
[346829496,1735311049411,-1426.93,0.00011041,2]
[346829497,1735311049421,-554.62250899,0.00011041,2]
[346829498,1735311049437,-857.16749101,0.00011041,2]
[346829499,1735311049448,-2973.43,0.00011041,2]
[346829500,1735311049459,-500.0,0.00011041,2]
[346829501,1735311049469,-554.67456453,0.00011041,2]
[346829502,1735311049478,-500.0,0.00011041,2]
[346829503,1735311049491,-629.79,0.00011041,2]
[346829504,1735311049501,-5508.05,0.00011041,2]
[346829505,1735311049510,-1220.93,0.00011041,2]
[346829506,1735311049521,-500.0,0.00011041,2]
[346829507,1735311049531,-500.0,0.00011041,2]
[346829508,1735311049541,-964.39,0.00011041,2]
[346829509,1735311049552,-500.0,0.00011041,2]
[346829510,1735311049562,-500.0,0.00011041,2]
[346829511,1735311049572,-500.0,0.00011041,2]
[346829512,1735311049583,-181.39197928,0.00011041,2]
[346829513,1735311049593,-917.89,0.00011041,2]
[346829514,1735311049603,-500.0,0.00011041,2]
[346829515,1735311049613,-2688.83,0.00011041,2]
[346829516,1735311049623,-1722.9,0.00011041,2]
[346829517,1735311049633,-576.23,0.00011041,2]
[346829518,1735311049643,-1175.9,0.00011041,2]
[346829519,1735311049654,-1439.31,0.00011041,2]
[346829520,1735311049664,-2808.21,0.00011041,2]
[346829521,1735311049674,-1011.74,0.00011041,2]
[346829522,1735311049684,-1323.46,0.00011041,2]
[346829523,1735311049694,-899.4,0.00011041,2]
[346829524,1735311049704,-649.16,0.00011041,2]
[346829525,1735311049713,-844.54,0.00011041,2]
[346829526,1735311049722,-4523.45,0.00011041,2]
[346829527,1735311049732,-500.0,0.00011041,2]
[346829528,1735311049745,-1368.66,0.00011041,2]
[346829529,1735311049755,-622.96,0.00011041,2]
[346829530,1735311049765,-1296.67,0.00011041,2]
[346829531,1735311049776,-603.94,0.00011041,2]
[346829532,1735311049786,-2893.38,0.00011041,2]
[346829533,1735311049796,-1368.68,0.00011041,2]
[346829534,1735311049806,-500.0,0.00011041,2]
[346829535,1735311049816,-793.02,0.00011041,2]
[346829536,1735311049825,-1376.57,0.00011041,2]
[346829537,1735311049834,-500.0,0.00011041,2]
[346829538,1735311049847,-500.0,0.00011041,2]
[346829539,1735311049856,-500.0,0.00011041,2]
[346829540,1735311049866,-560.24,0.00011041,2]
[346829541,1735311049875,-756.41,0.00011041,2]
[346829542,1735311049885,-2208.431258,0.00011041,2]
[346829543,1735311049895,-500.0,0.00011041,2]
[346829544,1735311049905,-630.96,0.00011041,2]
[346829545,1735311049914,-2136.370059,0.00011041,2]
[346829546,1735311049924,-2352.02,0.00011041,2]
[346829547,1735311049934,-500.0,0.00011041,2]
[346829548,1735311049945,-500.0,0.00011041,2]
[346829549,1735311049954,-2615.89,0.00011041,2]
[346829550,1735311049963,-500.0,0.00011041,2]
[346829551,1735311049972,-500.0,0.00011041,2]
[346829552,1735311049982,-517.4,0.00011041,2]
[346829553,1735311049995,-500.0,0.00011041,2]
[346829554,1735311050004,-881.95,0.00011041,2]
[346829555,1735311050014,-850.71,0.00011041,2]
[346829556,1735311050024,-601.21,0.00011041,2]
[346829557,1735311050032,-1142.58,0.00011041,2]
[346829558,1735311050042,-1491.37,0.00011041,2]
[346829559,1735311050051,-1510.88,0.00011041,2]
[346829560,1735311050061,-1044.52,0.00011041,2]
[346829561,1735311050070,-752.1,0.00011041,2]
[346829562,1735311050079,-500.0,0.00011041,2]
[346829563,1735311050088,-2454.49,0.00011041,2]
[346829564,1735311050098,-1825.23,0.00011041,2]
[346829565,1735311050107,-690.64,0.00011041,2]
[346829566,1735311050116,-630.23,0.00011041,2]
[346829567,1735311050126,-729.41,0.00011041,2]
[346829568,1735311050135,-1807.94,0.00011041,2]
[346829569,1735311050145,-500.0,0.00011041,2]
[346829570,1735311050154,-970.67,0.00011041,2]
[346829571,1735311050164,-1334.42,0.00011041,2]
[346829572,1735311050173,-13335.23,0.00011041,2]
[346829573,1735311050183,-500.0,0.00011041,2]
[346829574,1735311050192,-714.82,0.00011041,2]
[346829575,1735311050203,-923.34,0.00011041,2]
[346829576,1735311050212,-500.0,0.00011041,2]
[346829577,1735311050222,-990.1,0.00011041,2]
[346829578,1735311050232,-500.0,0.00011041,2]
[346829579,1735311050243,-2516.12,0.00011041,2]
[346829580,1735311050253,-2101.64,0.00011041,2]
[346829581,1735311050264,-1305.95,0.00011041,2]
[346829582,1735311050278,-947.81,0.00011041,2]
[346829583,1735311050298,-823.98,0.00011041,2]
[346829584,1735311050308,-500.0,0.00011041,2]
[346829585,1735311050317,-1548.36,0.00011041,2]
[346829586,1735311050327,-500.0,0.00011041,2]
[346829587,1735311050336,-388.80373237,0.00011041,2]
[346829588,1735311050346,-1011.27,0.00011041,2]
[346829589,1735311050356,-500.0,0.00011041,2]
[346829590,1735311050366,-5870.53,0.00011041,2]
[346829591,1735311050376,-500.0,0.00011041,2]
[346829592,1735311050385,-1473.28,0.00011041,2]
[346829593,1735311050394,-500.0,0.00011041,2]
[346829594,1735311050404,-500.0,0.00011041,2]
[346829595,1735311050414,-500.0,0.00011041,2]
[346829596,1735311050423,-2638.62,0.00011041,2]
[346829597,1735311050432,-4151.46,0.00011041,2]
[346829598,1735311050442,-1244.22,0.00011041,2]
[346829599,1735311050451,-500.0,0.00011041,2]
[346829600,1735311050461,-2342.06,0.00011041,2]
[346829601,1735311050470,-48710.81,0.00011041,2]
[346829602,1735311050480,-1451.36,0.00011041,2]
[346829603,1735311050493,-3094.54,0.00011041,2]
[346829604,1735311050502,-500.0,0.00011041,2]
[346829605,1735311050511,-500.0,0.00011041,2]
[346829606,1735311050520,-1433.65,0.00011041,2]
[346829607,1735311050531,-1147.41,0.00011041,2]
[346829608,1735311050540,-1538.09,0.00011041,2]
[346829609,1735311050549,-1522.23,0.00011041,2]
[346829610,1735311050559,-1887.32,0.00011041,2]
[346829611,1735311050569,-1786.09,0.00011041,2]
[346829612,1735311050579,-500.0,0.00011041,2]
[346829613,1735311050588,-1000.14,0.00011041,2]
[346829614,1735311050598,-500.0,0.00011041,2]
[346829615,1735311050608,-3691.69,0.00011041,2]
[346829616,1735311050617,-2401.46,0.00011041,2]
[346829617,1735311050627,-1558.5,0.00011041,2]
[346829618,1735311050637,-1250.72,0.00011041,2]
[346829619,1735311050646,-573.33367299,0.00011041,2]
[346829620,1735311050656,-1707.65,0.00011041,2]
[346829621,1735311050666,-873.29,0.00011041,2]
[346829622,1735311050675,-2131.29,0.00011041,2]
[346829623,1735311050684,-4556.85,0.00011041,2]
[346829624,1735311050694,-1777.58,0.00011041,2]
[346829625,1735311050704,-3407.67,0.00011041,2]
[346829626,1735311050714,-10170.37,0.00011041,2]
[346829627,1735311050723,-1816.88,0.00011041,2]
[346829628,1735311050733,-500.0,0.00011041,2]
[346829629,1735311050746,-1049.21,0.00011041,2]
[346829630,1735311050755,-500.0,0.00011041,2]
[346829631,1735311050765,-6020.07,0.00011041,2]
[346829632,1735311050775,-7777.54,0.00011041,2]
[346829633,1735311050785,-237.29230057,0.00011041,2]
[346829634,1735311050794,-500.0,0.00011041,2]
[346829635,1735311050804,-500.0,0.00011041,2]
[346829636,1735311050814,-500.0,0.00011041,2]
[346829637,1735311050824,-493.06495457,0.00011041,2]
[346829638,1735311050834,-1613.7,0.00011041,2]
[346829639,1735311050848,-2552.85,0.00011041,2]
[346829640,1735311050858,-6695.99,0.00011041,2]
[346829641,1735311051091,-2094.37,0.00011041,2]
[346829642,1735311051101,-2313.8,0.00011041,2]
[346829643,1735311051112,-910.12,0.00011041,2]
[346829644,1735311051122,-1841.4,0.00011041,2]
[346829645,1735311051132,-1507.75,0.00011041,2]
[346829646,1735311051143,-585.9,0.00011041,2]
[346829647,1735311051152,-4439.31,0.00011041,2]
[346829648,1735311051162,-3553.43,0.00011041,2]
[346829649,1735311051173,-500.0,0.00011041,2]
[346829650,1735311051183,-2085.09,0.00011041,2]